[Event "Early-Titled-Tuesday-Blitz-May-28-2024"]
[Site "Chess.com"]
[Date "2024.05.28"]
[Round "5"]
[White "RuperezA"]
[Black "Anton_Demchenko"]
[Result "1-0"]
[WhiteElo "2696"]
[BlackElo "2934"]
[TimeControl "180+1"]
[EndTime "8:57:21 PDT"]
[Termination "RuperezA won on time"]

1. e4 {[%clk 0:03:00.9]} 1... e5 {[%clk 0:02:58.9]} 2. Nf3 {[%clk 0:03:00.8]}
2... Nc6 {[%clk 0:02:57.8]} 3. Bc4 {[%clk 0:03:01.2]} 3... Nf6 {[%clk
0:02:57.6]} 4. d3 {[%clk 0:03:01.4]} 4... h6 {[%clk 0:02:56.7]} 5. O-O {[%clk
0:03:01.2]} 5... d6 {[%clk 0:02:57.1]} 6. d4 {[%clk 0:02:38]} 6... Bg4 {[%clk
0:02:55]} 7. c3 {[%clk 0:02:29.5]} 7... exd4 {[%clk 0:02:34.7]} 8. cxd4 {[%clk
0:02:20.4]} 8... Be7 {[%clk 0:02:32.9]} 9. Nc3 {[%clk 0:02:08.1]} 9... O-O
{[%clk 0:02:29.3]} 10. Re1 {[%clk 0:02:05.8]} 10... Bxf3 {[%clk 0:02:00.8]} 11.
gxf3 {[%clk 0:02:06.7]} 11... Qd7 {[%clk 0:01:29.5]} 12. Kh1 {[%clk 0:02:04.3]}
12... Kh8 {[%clk 0:01:21.1]} 13. Rg1 {[%clk 0:01:59.7]} 13... Rae8 {[%clk
0:01:03.1]} 14. Be3 {[%clk 0:01:56.3]} 14... Nh7 {[%clk 0:00:50.7]} 15. Qd2
{[%clk 0:01:49.9]} 15... g5 {[%clk 0:00:40.4]} 16. f4 {[%clk 0:01:43.1]} 16...
f6 {[%clk 0:00:19.6]} 17. Bb5 {[%clk 0:01:33.5]} 17... a6 {[%clk 0:00:18.8]} 18.
Ba4 {[%clk 0:01:33.5]} 18... b5 {[%clk 0:00:19.1]} 19. Bc2 {[%clk 0:01:27.8]}
19... Bd8 {[%clk 0:00:18.3]} 20. a4 {[%clk 0:01:17.4]} 20... b4 {[%clk
0:00:17.5]} 21. Nd5 {[%clk 0:01:18.1]} 21... a5 {[%clk 0:00:16.8]} 22. fxg5
{[%clk 0:01:02.2]} 22... fxg5 {[%clk 0:00:15.4]} 23. f4 {[%clk 0:01:01.3]} 23...
Ne7 {[%clk 0:00:13.9]} 24. Nxe7 {[%clk 0:00:54.9]} 24... Bxe7 {[%clk 0:00:10.3]}
25. e5 {[%clk 0:00:49.2]} 25... dxe5 {[%clk 0:00:10.5]} 26. fxe5 {[%clk
0:00:42.6]} 26... Qd5+ {[%clk 0:00:10]} 27. Rg2 {[%clk 0:00:38.2]} 27... Rf7
{[%clk 0:00:07]} 28. Qd3 {[%clk 0:00:36.8]} 28... Ref8 {[%clk 0:00:05.3]} 29.
Bb3 {[%clk 0:00:35.2]} 29... Qf3 {[%clk 0:00:04.1]} 30. Bxf7 {[%clk 0:00:34]}
30... Rxf7 {[%clk 0:00:04.4]} 31. Kg1 {[%clk 0:00:34.1]} 31... Qd5 {[%clk
0:00:03.9]} 32. Rf1 {[%clk 0:00:32.3]} 32... Rxf1+ {[%clk 0:00:04.1]} 33. Kxf1
{[%clk 0:00:32.9]} 33... Kg7 {[%clk 0:00:05]} 34. Rf2 {[%clk 0:00:32.1]} 34...
c5 {[%clk 0:00:04.4]} 35. b3 {[%clk 0:00:26.2]} 35... Nf8 {[%clk 0:00:02.5]} 36.
Qf5 {[%clk 0:00:19]} 36... c4 {[%clk 0:00:03]} 37. bxc4 {[%clk 0:00:18.5]} 37...
Qxc4+ {[%clk 0:00:03.7]} 38. Kg2 {[%clk 0:00:12.2]} 38... Qd5+ {[%clk
0:00:04.4]} 39. Kg1 {[%clk 0:00:12]} 39... Ng6 {[%clk 0:00:05.1]} 40. Qc2 {[%clk
0:00:08]} 40... Nh4 {[%clk 0:00:04.7]} 41. Qc7 {[%clk 0:00:07.5]} 41... Qe6
{[%clk 0:00:02]} 42. d5 {[%clk 0:00:07.8]} 42... Qxd5 {[%clk 0:00:01.9]} 43.
Qxe7+ {[%clk 0:00:07.5]} 43... Kg6 {[%clk 0:00:02.8]} 44. Qf6+ {[%clk
0:00:06.6]} 44... Kh5 {[%clk 0:00:03.1]} 45. Qf7+ {[%clk 0:00:07.1]} 45... Qxf7
{[%clk 0:00:02.8]} 46. Rxf7 {[%clk 0:00:08]} 46... Kg6 {[%clk 0:00:02.8]} 47.
Ra7 {[%clk 0:00:08.5]} 47... Nf3+ {[%clk 0:00:02.8]} 48. Kf2 {[%clk 0:00:08.6]}
48... Nxe5 {[%clk 0:00:03.6]} 49. Rxa5 {[%clk 0:00:08.8]} 49... Nc4 {[%clk
0:00:03.9]} 50. Rb5 {[%clk 0:00:09.1]} 50... Nb2 {[%clk 0:00:02.8]} 51. a5
{[%clk 0:00:08.4]} 51... b3 {[%clk 0:00:02.8]} 52. a6 {[%clk 0:00:08.5]} 52...
Nc4 {[%clk 0:00:03]} 53. a7 {[%clk 0:00:08]} 53... b2 {[%clk 0:00:03.9]} 54.
a8=Q {[%clk 0:00:08.1]} 54... Kh5 {[%clk 0:00:03.7]} 55. Qf3+ {[%clk 0:00:08.3]}
55... Kg6 {[%clk 0:00:03.9]} 56. Qf5+ {[%clk 0:00:09.2]} 56... Kh5 {[%clk
0:00:03.8]} 57. Qf7+ {[%clk 0:00:09.4]} 57... Kh4 {[%clk 0:00:03.9]} 58. Bxg5+
{[%clk 0:00:08.2]} 1-0

[Event "Early-Titled-Tuesday-Blitz-May-28-2024"]
[Site "Chess.com"]
[Date "2024.05.28"]
[Round "5"]
[White "HajiyevKanan"]
[Black "Irina_Mikhaylova"]
[Result "1/2-1/2"]
[WhiteElo "2518"]
[BlackElo "2341"]
[TimeControl "180+1"]
[EndTime "8:57:21 PDT"]
[Termination "Game drawn - insufficient material"]

1. d4 {[%clk 0:02:47.9]} 1... Nf6 {[%clk 0:02:59.7]} 2. Nf3 {[%clk 0:02:48.8]}
2... g6 {[%clk 0:03:00.1]} 3. g3 {[%clk 0:02:49.1]} 3... Bg7 {[%clk 0:03:00.4]}
4. Bg2 {[%clk 0:02:50]} 4... O-O {[%clk 0:03:00.9]} 5. O-O {[%clk 0:02:50.9]}
5... d5 {[%clk 0:03:00.8]} 6. b3 {[%clk 0:02:51.8]} 6... c6 {[%clk 0:03:01.2]}
7. Bb2 {[%clk 0:02:52.5]} 7... Bf5 {[%clk 0:03:01.6]} 8. e3 {[%clk 0:02:52.9]}
8... Ne4 {[%clk 0:03:02]} 9. Nbd2 {[%clk 0:02:53.6]} 9... Nxd2 {[%clk
0:03:02.2]} 10. Qxd2 {[%clk 0:02:54.5]} 10... Be4 {[%clk 0:03:02.3]} 11. c4
{[%clk 0:02:55]} 11... Nd7 {[%clk 0:03:01]} 12. Rac1 {[%clk 0:02:55.6]} 12...
Rc8 {[%clk 0:02:56.4]} 13. Rfd1 {[%clk 0:02:55.3]} 13... Re8 {[%clk 0:02:48.5]}
14. Qb4 {[%clk 0:02:49.7]} 14... Qb6 {[%clk 0:02:46.3]} 15. Ba3 {[%clk
0:02:47.6]} 15... Qxb4 {[%clk 0:02:41.4]} 16. Bxb4 {[%clk 0:02:48.5]} 16... e6
{[%clk 0:02:36.6]} 17. h4 {[%clk 0:02:48.1]} 17... Bf8 {[%clk 0:02:31.2]} 18.
Bxf8 {[%clk 0:02:46.6]} 18... Kxf8 {[%clk 0:02:31.2]} 19. Kf1 {[%clk 0:02:46.6]}
19... Ke7 {[%clk 0:01:59.9]} 20. Ke2 {[%clk 0:02:45.9]} 20... Bxf3+ {[%clk
0:01:54.3]} 21. Bxf3 {[%clk 0:02:46.8]} 21... h5 {[%clk 0:01:54.8]} 22. b4
{[%clk 0:02:39.8]} 22... Nf6 {[%clk 0:01:45.8]} 23. a4 {[%clk 0:02:36.2]} 23...
Kd6 {[%clk 0:01:33.8]} 24. c5+ {[%clk 0:02:36]} 24... Kc7 {[%clk 0:01:29.8]} 25.
b5 {[%clk 0:02:36.9]} 25... e5 {[%clk 0:01:29.5]} 26. Rb1 {[%clk 0:02:28]} 26...
Rcd8 {[%clk 0:01:23.3]} 27. dxe5 {[%clk 0:02:23]} 27... Rxe5 {[%clk 0:01:22.4]}
28. Rd4 {[%clk 0:02:23.9]} 28... Ne4 {[%clk 0:01:19.4]} 29. Bxe4 {[%clk
0:02:20.9]} 29... Rxe4 {[%clk 0:01:19.7]} 30. Rbb4 {[%clk 0:02:07.3]} 30... Rde8
{[%clk 0:01:18.9]} 31. Kd3 {[%clk 0:02:02.9]} 31... f5 {[%clk 0:01:18.9]} 32.
Rxe4 {[%clk 0:01:57.6]} 32... fxe4+ {[%clk 0:01:15.8]} 33. Kd4 {[%clk 0:01:53]}
33... Rf8 {[%clk 0:01:14.9]} 34. Rb2 {[%clk 0:01:53.1]} 34... Rf5 {[%clk
0:01:14.9]} 35. bxc6 {[%clk 0:01:47.8]} 35... Kxc6 {[%clk 0:01:01.3]} 36. a5
{[%clk 0:01:48.7]} 36... Rf7 {[%clk 0:00:58.2]} 37. a6 {[%clk 0:01:23.7]} 37...
bxa6 {[%clk 0:00:58.4]} 38. Ra2 {[%clk 0:01:23.9]} 38... Kb5 {[%clk 0:00:58.8]}
39. Rb2+ {[%clk 0:01:24]} 39... Kc6 {[%clk 0:00:59.2]} 40. Ra2 {[%clk
0:01:24.3]} 40... Kb5 {[%clk 0:00:57.1]} 41. Kxd5 {[%clk 0:01:21.3]} 41... Rd7+
{[%clk 0:00:52.3]} 42. Kxe4 {[%clk 0:01:16.4]} 42... Kxc5 {[%clk 0:00:50.1]} 43.
Rxa6 {[%clk 0:01:14.2]} 43... Re7+ {[%clk 0:00:50.2]} 44. Kd3 {[%clk 0:01:05.6]}
44... Rg7 {[%clk 0:00:47.9]} 45. e4 {[%clk 0:01:03.6]} 45... Kb5 {[%clk
0:00:48.1]} 46. Ra2 {[%clk 0:01:01]} 46... a5 {[%clk 0:00:41.7]} 47. Rb2+ {[%clk
0:01:01.1]} 47... Kc5 {[%clk 0:00:41.6]} 48. Rb8 {[%clk 0:00:57.6]} 48... Ra7
{[%clk 0:00:38.9]} 49. Kc3 {[%clk 0:00:50.7]} 49... a4 {[%clk 0:00:38.2]} 50.
Rb2 {[%clk 0:00:49.4]} 50... a3 {[%clk 0:00:36.1]} 51. Ra2 {[%clk 0:00:49.7]}
51... Ra4 {[%clk 0:00:36.7]} 52. f3 {[%clk 0:00:49.8]} 52... Ra8 {[%clk
0:00:29.2]} 53. Kb3 {[%clk 0:00:45.8]} 53... Kd4 {[%clk 0:00:27.3]} 54. Rxa3
{[%clk 0:00:46.2]} 54... Rc8 {[%clk 0:00:24.9]} 55. Kb2 {[%clk 0:00:40.2]} 55...
Rc7 {[%clk 0:00:24.5]} 56. Ra4+ {[%clk 0:00:34.3]} 56... Ke3 {[%clk 0:00:24.2]}
57. f4 {[%clk 0:00:35.2]} 57... Kf3 {[%clk 0:00:21.9]} 58. e5 {[%clk 0:00:27.6]}
58... Kxg3 {[%clk 0:00:21.8]} 59. e6 {[%clk 0:00:23.3]} 59... Re7 {[%clk
0:00:19.7]} 60. Re4 {[%clk 0:00:19.9]} 60... Kxh4 {[%clk 0:00:17]} 61. f5+
{[%clk 0:00:19.5]} 61... Kg5 {[%clk 0:00:16.1]} 62. fxg6 {[%clk 0:00:18]} 62...
Kxg6 {[%clk 0:00:16.1]} 63. Kc3 {[%clk 0:00:18.5]} 63... Kf6 {[%clk 0:00:16.6]}
64. Rh4 {[%clk 0:00:17.8]} 64... Rxe6 {[%clk 0:00:17]} 65. Rxh5 {[%clk
0:00:18.2]} 65... Rd6 {[%clk 0:00:17.2]} 66. Rh6+ {[%clk 0:00:18.1]} 66... Ke7
{[%clk 0:00:17.4]} 67. Rxd6 {[%clk 0:00:19]} 67... Kxd6 {[%clk 0:00:17.8]}
1/2-1/2

[Event "Early-Titled-Tuesday-Blitz-May-28-2024"]
[Site "Chess.com"]
[Date "2024.05.28"]
[Round "5"]
[White "Shushik"]
[Black "Naruto75_3"]
[Result "1-0"]
[WhiteElo "2564"]
[BlackElo "2404"]
[TimeControl "180+1"]
[EndTime "8:57:23 PDT"]
[Termination "Shushik won by resignation"]

1. e4 {[%clk 0:03:00.9]} 1... c5 {[%clk 0:02:59.1]} 2. Ne2 {[%clk 0:03:01]} 2...
Nf6 {[%clk 0:02:57.1]} 3. Nbc3 {[%clk 0:03:00]} 3... Nc6 {[%clk 0:02:53.3]} 4.
d4 {[%clk 0:02:59.4]} 4... cxd4 {[%clk 0:02:53]} 5. Nxd4 {[%clk 0:03:00.3]} 5...
Nxd4 {[%clk 0:02:51.4]} 6. Qxd4 {[%clk 0:02:59.8]} 6... d6 {[%clk 0:02:51.5]} 7.
Bg5 {[%clk 0:02:54.1]} 7... Bd7 {[%clk 0:02:47.3]} 8. O-O-O {[%clk 0:02:52.9]}
8... e6 {[%clk 0:02:45.2]} 9. f4 {[%clk 0:02:49]} 9... h6 {[%clk 0:02:33]} 10.
Bxf6 {[%clk 0:02:38.3]} 10... gxf6 {[%clk 0:02:24.4]} 11. f5 {[%clk 0:02:32.2]}
11... Be7 {[%clk 0:02:20]} 12. Bc4 {[%clk 0:02:29.1]} 12... Qa5 {[%clk
0:02:12.8]} 13. Kb1 {[%clk 0:02:16.9]} 13... Rc8 {[%clk 0:02:04.6]} 14. Bb3
{[%clk 0:02:09.5]} 14... b5 {[%clk 0:01:56.7]} 15. Rhf1 {[%clk 0:02:05.9]} 15...
b4 {[%clk 0:01:54.6]} 16. Ne2 {[%clk 0:02:05.7]} 16... Qc5 {[%clk 0:01:53.9]}
17. Qd3 {[%clk 0:02:03]} 17... a5 {[%clk 0:01:48.4]} 18. fxe6 {[%clk 0:02:01.9]}
18... fxe6 {[%clk 0:01:46.7]} 19. Nf4 {[%clk 0:01:56.6]} 19... Bb5 {[%clk
0:01:35.6]} 20. Qg3 {[%clk 0:01:49.9]} 20... Qg5 {[%clk 0:01:27.8]} 21. Bxe6
{[%clk 0:01:27.9]} 21... Rc5 {[%clk 0:01:24.7]} 22. Rfe1 {[%clk 0:01:22.3]}
22... Qxg3 {[%clk 0:01:16.2]} 23. hxg3 {[%clk 0:01:23.2]} 23... Rg5 {[%clk
0:01:15.8]} 24. g4 {[%clk 0:01:17.6]} 24... Bd7 {[%clk 0:01:12.5]} 25. Bf5
{[%clk 0:01:17.8]} 25... Rhg8 {[%clk 0:01:05.1]} 26. Rd5 {[%clk 0:01:08.6]}
26... Bxf5 {[%clk 0:00:57.2]} 27. gxf5 {[%clk 0:01:08.5]} 27... Rg4 {[%clk
0:00:55.2]} 28. Rf1 {[%clk 0:01:04.3]} 28... Rh4 {[%clk 0:00:48.2]} 29. Rxa5
{[%clk 0:01:03.1]} 29... Rgg4 {[%clk 0:00:46.8]} 30. Ng6 {[%clk 0:00:53.9]}
30... Rh2 {[%clk 0:00:46.6]} 31. Ra8+ {[%clk 0:00:39.3]} 31... Kf7 {[%clk
0:00:46.2]} 32. Re1 {[%clk 0:00:34.9]} 32... Rxe4 {[%clk 0:00:45.1]} 33. Rc1
{[%clk 0:00:22.3]} 33... Rh5 {[%clk 0:00:41.6]} 34. c3 {[%clk 0:00:11.6]} 34...
bxc3 {[%clk 0:00:36.6]} 35. Rxc3 {[%clk 0:00:12.5]} 35... Rxf5 {[%clk
0:00:35.9]} 36. Nh8+ {[%clk 0:00:09.3]} 36... Kg7 {[%clk 0:00:35.7]} 37. Rg3+
{[%clk 0:00:08.7]} 37... Rg5 {[%clk 0:00:35.7]} 38. Rc3 {[%clk 0:00:05.1]} 38...
Rxg2 {[%clk 0:00:34.9]} 39. a4 {[%clk 0:00:05.4]} 39... Re1+ {[%clk 0:00:33.5]}
40. Ka2 {[%clk 0:00:05.6]} 40... Ree2 {[%clk 0:00:33.4]} 41. Rb8 {[%clk
0:00:05.5]} 41... d5 {[%clk 0:00:29.4]} 42. Rcc8 {[%clk 0:00:05.2]} 42... Bd6
{[%clk 0:00:18.7]} 43. Rg8+ {[%clk 0:00:03.8]} 43... Kh7 {[%clk 0:00:18.4]} 44.
Rxg2 {[%clk 0:00:03.2]} 44... Rxg2 {[%clk 0:00:19.3]} 45. Rd8 {[%clk 0:00:03.6]}
45... Be5 {[%clk 0:00:18.7]} 46. Nf7 {[%clk 0:00:02.5]} 46... Rxb2+ {[%clk
0:00:17.8]} 47. Ka3 {[%clk 0:00:03.2]} 47... Rd2 {[%clk 0:00:16.7]} 48. Nxe5
{[%clk 0:00:02.8]} 48... fxe5 {[%clk 0:00:17.6]} 49. a5 {[%clk 0:00:03.4]} 49...
Rd1 {[%clk 0:00:15.8]} 50. Kb4 {[%clk 0:00:03.4]} 50... e4 {[%clk 0:00:15.1]}
51. a6 {[%clk 0:00:03.9]} 51... e3 {[%clk 0:00:15.2]} 52. a7 {[%clk 0:00:04.5]}
52... Ra1 {[%clk 0:00:14]} 53. a8=Q {[%clk 0:00:03.4]} 53... Rxa8 {[%clk
0:00:12.5]} 54. Rxa8 {[%clk 0:00:04.3]} 54... Kg6 {[%clk 0:00:11.1]} 55. Kc3
{[%clk 0:00:04.2]} 55... Kf6 {[%clk 0:00:11.1]} 56. Kd3 {[%clk 0:00:04.5]} 1-0

[Event "Early-Titled-Tuesday-Blitz-May-28-2024"]
[Site "Chess.com"]
[Date "2024.05.28"]
[Round "5"]
[White "ilya2700"]
[Black "GMMikhailKazakov"]
[Result "0-1"]
[WhiteElo "2204"]
[BlackElo "2520"]
[TimeControl "180+1"]
[EndTime "8:57:23 PDT"]
[Termination "GMMikhailKazakov won by checkmate"]

1. e4 {[%clk 0:02:59.5]} 1... e5 {[%clk 0:02:56.5]} 2. Nf3 {[%clk 0:02:57.2]}
2... Nc6 {[%clk 0:02:54.8]} 3. Bb5 {[%clk 0:02:57.7]} 3... a6 {[%clk 0:02:54.4]}
4. Ba4 {[%clk 0:02:57.7]} 4... Nf6 {[%clk 0:02:54.2]} 5. O-O {[%clk 0:02:57.6]}
5... Be7 {[%clk 0:02:52.7]} 6. d3 {[%clk 0:02:54.6]} 6... b5 {[%clk 0:02:45.6]}
7. Bb3 {[%clk 0:02:54.3]} 7... d6 {[%clk 0:02:43.7]} 8. h3 {[%clk 0:02:54]} 8...
O-O {[%clk 0:02:42.7]} 9. c3 {[%clk 0:02:53.6]} 9... Na5 {[%clk 0:02:41.2]} 10.
Bc2 {[%clk 0:02:53.3]} 10... c5 {[%clk 0:02:41.6]} 11. Re1 {[%clk 0:02:53.1]}
11... Nc6 {[%clk 0:02:41.7]} 12. Be3 {[%clk 0:02:50.6]} 12... d5 {[%clk
0:02:35.8]} 13. exd5 {[%clk 0:02:50.5]} 13... Nxd5 {[%clk 0:02:36.7]} 14. Nbd2
{[%clk 0:02:45.6]} 14... Be6 {[%clk 0:02:29.7]} 15. Nf1 {[%clk 0:02:32.8]} 15...
Qc7 {[%clk 0:02:07.8]} 16. Ng3 {[%clk 0:02:26.3]} 16... Rad8 {[%clk 0:02:00.2]}
17. Bg5 {[%clk 0:02:10.4]} 17... f6 {[%clk 0:01:57.7]} 18. Bd2 {[%clk
0:02:09.7]} 18... Rfe8 {[%clk 0:01:52.8]} 19. d4 {[%clk 0:02:06.5]} 19... Bd6
{[%clk 0:01:29]} 20. dxe5 {[%clk 0:01:58.2]} 20... Nxe5 {[%clk 0:01:26.3]} 21.
Nxe5 {[%clk 0:01:52.9]} 21... Bxe5 {[%clk 0:01:27.2]} 22. Qf3 {[%clk 0:01:42.5]}
22... Bf7 {[%clk 0:01:06.7]} 23. Rad1 {[%clk 0:01:39.8]} 23... Bxg3 {[%clk
0:00:51.6]} 24. Qxg3 {[%clk 0:01:34.7]} 24... Qxg3 {[%clk 0:00:44.3]} 25. fxg3
{[%clk 0:01:35.6]} 25... Rxe1+ {[%clk 0:00:38.4]} 26. Rxe1 {[%clk 0:01:35.1]}
26... Nb4 {[%clk 0:00:32]} 27. cxb4 {[%clk 0:00:34.9]} 27... Rxd2 {[%clk
0:00:30.7]} 28. Be4 {[%clk 0:00:26.8]} 28... cxb4 {[%clk 0:00:27.9]} 29. Rc1
{[%clk 0:00:27]} 29... g6 {[%clk 0:00:18.3]} 30. Rc8+ {[%clk 0:00:22.1]} 30...
Kg7 {[%clk 0:00:18.4]} 31. Rc7 {[%clk 0:00:22.2]} 31... f5 {[%clk 0:00:18.1]}
32. Bf3 {[%clk 0:00:22.5]} 32... Kf6 {[%clk 0:00:14.1]} 33. Ra7 {[%clk
0:00:22.1]} 33... Be6 {[%clk 0:00:10.2]} 34. Rxa6 {[%clk 0:00:22]} 34... Ke5
{[%clk 0:00:10.3]} 35. b3 {[%clk 0:00:18.4]} 35... Bd5 {[%clk 0:00:07.5]} 36.
Ra5 {[%clk 0:00:13.6]} 36... Bxf3 {[%clk 0:00:06.1]} 37. gxf3 {[%clk 0:00:14.5]}
37... Kd4 {[%clk 0:00:05.9]} 38. Rxb5 {[%clk 0:00:14.2]} 38... Ke3 {[%clk
0:00:06.1]} 39. Rxb4 {[%clk 0:00:11.6]} 39... Kxf3 {[%clk 0:00:06.2]} 40. g4
{[%clk 0:00:11.9]} 40... f4 {[%clk 0:00:06.1]} 41. a4 {[%clk 0:00:10]} 41... Kg3
{[%clk 0:00:06]} 42. Kf1 {[%clk 0:00:10]} 42... f3 {[%clk 0:00:06.5]} 43. Ke1
{[%clk 0:00:09.7]} 43... Ra2 {[%clk 0:00:06.6]} 44. Rd4 {[%clk 0:00:03.2]} 44...
f2+ {[%clk 0:00:06.3]} 45. Kf1 {[%clk 0:00:02.7]} 45... Ra1+ {[%clk 0:00:05.9]}
46. Ke2 {[%clk 0:00:03.6]} 46... f1=Q+ {[%clk 0:00:05.9]} 47. Kd2 {[%clk
0:00:04.5]} 47... Rd1+ {[%clk 0:00:05.3]} 48. Kc3 {[%clk 0:00:05.4]} 48... Qf3+
{[%clk 0:00:04.6]} 49. Kc4 {[%clk 0:00:05.3]} 49... Qc6+ {[%clk 0:00:04.4]} 50.
Kb4 {[%clk 0:00:05.1]} 50... Rxd4+ {[%clk 0:00:04.5]} 51. Ka3 {[%clk 0:00:06]}
51... Qc3 {[%clk 0:00:05.2]} 52. a5 {[%clk 0:00:05.2]} 52... Rb4 {[%clk
0:00:05.8]} 53. Ka2 {[%clk 0:00:03.7]} 53... Qxb3+ {[%clk 0:00:05.5]} 54. Ka1
{[%clk 0:00:03.6]} 54... Qb2# {[%clk 0:00:06.4]} 0-1

[Event "Early-Titled-Tuesday-Blitz-May-28-2024"]
[Site "Chess.com"]
[Date "2024.05.28"]
[Round "5"]
[White "Preobrazhenska_D2011"]
[Black "JanMur7"]
[Result "1-0"]
[WhiteElo "2515"]
[BlackElo "2269"]
[TimeControl "180+1"]
[EndTime "8:57:24 PDT"]
[Termination "Preobrazhenska_D2011 won by checkmate"]

1. e4 {[%clk 0:02:59.4]} 1... g6 {[%clk 0:02:58.5]} 2. d4 {[%clk 0:02:59.3]}
2... Bg7 {[%clk 0:02:58.8]} 3. Nc3 {[%clk 0:02:53.6]} 3... c5 {[%clk 0:02:59.2]}
4. dxc5 {[%clk 0:02:52.2]} 4... Bxc3+ {[%clk 0:02:59.2]} 5. bxc3 {[%clk
0:02:50.5]} 5... Nf6 {[%clk 0:03:00.1]} 6. Qd3 {[%clk 0:02:27.5]} 6... Qa5
{[%clk 0:02:49.1]} 7. Bd2 {[%clk 0:02:05.6]} 7... Qxc5 {[%clk 0:02:33.5]} 8. Nf3
{[%clk 0:01:59.2]} 8... Nc6 {[%clk 0:02:32.1]} 9. Be2 {[%clk 0:01:42.2]} 9...
O-O {[%clk 0:02:26.8]} 10. O-O {[%clk 0:01:41.2]} 10... d6 {[%clk 0:02:26]} 11.
Rab1 {[%clk 0:01:38.2]} 11... Ng4 {[%clk 0:02:22.4]} 12. Rb5 {[%clk 0:01:22]}
12... Nge5 {[%clk 0:02:09.8]} 13. Nxe5 {[%clk 0:00:53.8]} 13... Nxe5 {[%clk
0:02:04.3]} 14. Rxc5 {[%clk 0:00:50.7]} 14... Nxd3 {[%clk 0:02:04.1]} 15. Rxc8
{[%clk 0:00:50.8]} 15... Raxc8 {[%clk 0:01:55.8]} 16. cxd3 {[%clk 0:00:48.9]}
16... b5 {[%clk 0:01:52]} 17. d4 {[%clk 0:00:48.8]} 17... a6 {[%clk 0:01:51.8]}
18. Bd3 {[%clk 0:00:47.1]} 18... Rc7 {[%clk 0:01:45.2]} 19. f4 {[%clk
0:00:47.5]} 19... Rfc8 {[%clk 0:01:35.9]} 20. e5 {[%clk 0:00:47.7]} 20... d5
{[%clk 0:01:34.6]} 21. f5 {[%clk 0:00:45.7]} 21... e6 {[%clk 0:01:27]} 22. fxe6
{[%clk 0:00:40.1]} 22... fxe6 {[%clk 0:01:26.7]} 23. Rf6 {[%clk 0:00:39]} 23...
Re8 {[%clk 0:01:26.7]} 24. g4 {[%clk 0:00:36.3]} 24... Rf7 {[%clk 0:01:25.7]}
25. g5 {[%clk 0:00:35]} 25... Rxf6 {[%clk 0:01:23.1]} 26. gxf6 {[%clk
0:00:34.4]} 26... Kf7 {[%clk 0:01:23.6]} 27. Kf2 {[%clk 0:00:34.1]} 27... Rh8
{[%clk 0:01:02.5]} 28. Bc2 {[%clk 0:00:27.5]} 28... h6 {[%clk 0:00:49.6]} 29.
Ke2 {[%clk 0:00:24.2]} 29... Rc8 {[%clk 0:00:44.2]} 30. Bd3 {[%clk 0:00:21.9]}
30... Rh8 {[%clk 0:00:39.5]} 31. Kd1 {[%clk 0:00:22.1]} 31... Rc8 {[%clk
0:00:37.4]} 32. Kc2 {[%clk 0:00:17.5]} 32... Rb8 {[%clk 0:00:34.2]} 33. Kb3
{[%clk 0:00:17.1]} 33... a5 {[%clk 0:00:29.9]} 34. a3 {[%clk 0:00:17.4]} 34...
g5 {[%clk 0:00:17.4]} 35. Be3 {[%clk 0:00:08.4]} 35... Rb7 {[%clk 0:00:15.6]}
36. Be2 {[%clk 0:00:08.4]} 36... Kg6 {[%clk 0:00:14.4]} 37. Bd3+ {[%clk
0:00:08.6]} 37... Kf7 {[%clk 0:00:14.5]} 38. Bf2 {[%clk 0:00:08.9]} 38... Rb8
{[%clk 0:00:13.7]} 39. h4 {[%clk 0:00:09.3]} 39... Rb7 {[%clk 0:00:08.8]} 40. h5
{[%clk 0:00:05.9]} 40... Rb8 {[%clk 0:00:07.3]} 41. Bg6+ {[%clk 0:00:06.3]}
41... Kf8 {[%clk 0:00:07.6]} 42. Be1 {[%clk 0:00:06.5]} 42... Rb6 {[%clk
0:00:06.8]} 43. Kc2 {[%clk 0:00:06.1]} 43... Rb7 {[%clk 0:00:06.1]} 44. c4
{[%clk 0:00:06.1]} 44... bxc4 {[%clk 0:00:05.5]} 45. Bxa5 {[%clk 0:00:06.3]}
45... Rb3 {[%clk 0:00:05.5]} 46. Bb4+ {[%clk 0:00:06.8]} 46... Rxb4 {[%clk
0:00:03.1]} 47. axb4 {[%clk 0:00:07.7]} 47... g4 {[%clk 0:00:03.1]} 48. Kd2
{[%clk 0:00:08]} 48... g3 {[%clk 0:00:04]} 49. Ke2 {[%clk 0:00:08]} 49... c3
{[%clk 0:00:04.4]} 50. Kf3 {[%clk 0:00:07.1]} 50... g2 {[%clk 0:00:05.2]} 51.
Kxg2 {[%clk 0:00:07.5]} 51... c2 {[%clk 0:00:06.1]} 52. Bxc2 {[%clk 0:00:07]}
52... Ke8 {[%clk 0:00:06.5]} 53. b5 {[%clk 0:00:07.4]} 53... Kf7 {[%clk
0:00:07.4]} 54. b6 {[%clk 0:00:07.5]} 54... Ke8 {[%clk 0:00:08.3]} 55. b7 {[%clk
0:00:07.3]} 55... Kf7 {[%clk 0:00:08]} 56. Bg6+ {[%clk 0:00:07.7]} 56... Kf8
{[%clk 0:00:08.2]} 57. b8=Q# {[%clk 0:00:07.9]} 1-0